bitfinex/quotes_BTCUSD_20240613
["timestamp","ask_amount","ask_price","bid_price","bid_amount"]
[1718278148610,0.00086,67919.0,67918.0,1.18065998]
[1718278148611,0.00066,67919.0,67918.0,1.18065998]
[1718278149252,0.00066,67919.0,67918.0,1.09342895]
[1718278149461,0.00066,67919.0,67918.0,1.08042895]
[1718278149678,0.00066,67919.0,67918.0,0.98842895]
[1718278149891,0.00066,67919.0,67918.0,0.84419295]
[1718278150110,0.00066,67919.0,67918.0,0.83619295]
[1718278150328,0.00066,67919.0,67918.0,0.76015026]
[1718278150550,0.00066,67919.0,67918.0,0.80137108]
[1718278150840,0.00066,67919.0,67918.0,0.79937108]
[1718278151011,0.00066,67919.0,67918.0,0.84295026]
[1718278151223,0.00066,67919.0,67918.0,0.85695026]
[1718278151397,0.00066,67919.0,67918.0,0.83495026]
[1718278151665,0.00066,67919.0,67918.0,0.79137108]
[1718278152899,0.00066,67919.0,67918.0,0.81237108]
[1718278153075,0.00066,67919.0,67918.0,0.79837108]
[1718278153483,0.00066,67919.0,67918.0,0.81237108]
[1718278153689,0.00066,67919.0,67918.0,0.43235115]
[1718278154012,0.00066,67919.0,67918.0,0.50315115]
[1718278156653,0.00066,67919.0,67918.0,0.51315115]
[1718278157011,0.00066,67919.0,67918.0,0.50315115]
[1718278158512,0.00066,67919.0,67918.0,0.51315115]
[1718278164301,0.00066,67919.0,67918.0,1.05960708]
[1718278164729,0.00066,67919.0,67918.0,1.10541486]
[1718278165608,0.00066,67919.0,67918.0,1.07074893]
[1718278166020,0.00066,67919.0,67918.0,0.95960708]
[1718278168005,0.00066,67919.0,67918.0,0.81237108]
[1718278168464,0.00066,67919.0,67918.0,0.81331708]
[1718278169621,0.00066,67919.0,67918.0,0.85687997]
[1718278170522,0.00066,67919.0,67918.0,0.81331708]
[1718278172035,0.00066,67919.0,67918.0,0.31669715]
[1718278172238,0.00066,67919.0,67918.0,0.41969715]
[1718278176041,0.00066,67919.0,67918.0,0.42969715]
[1718278176315,0.00066,67919.0,67918.0,0.41969715]
[1718278176635,0.00066,67919.0,67918.0,0.42969715]
[1718278182116,0.00066,67919.0,67918.0,0.41969715]
[1718278182866,0.00066,67919.0,67918.0,0.46101708]
[1718278183211,0.00066,67919.0,67918.0,0.51239715]
[1718278183414,0.00066,67919.0,67918.0,0.52239715]
[1718278183616,0.00066,67919.0,67918.0,0.60184117]
[1718278183823,0.00066,67919.0,67918.0,0.54723254]
[1718278183985,0.00066,67919.0,67918.0,0.59084117]
[1718278184305,0.00066,67919.0,67918.0,0.56123254]
[1718278184709,0.00066,67919.0,67918.0,0.50139715]
[1718278184914,0.00066,67919.0,67918.0,0.48739715]
[1718278185131,0.00066,67919.0,67918.0,0.49739715]
[1718278185286,0.00066,67919.0,67918.0,0.51139715]
[1718278185495,0.00066,67919.0,67918.0,0.49739715]
[1718278185919,0.00066,67919.0,67918.0,0.51139715]
[1718278186916,0.00066,67919.0,67918.0,0.55502087]
[1718278187296,0.00066,67919.0,67918.0,0.56723485]
[1718278187496,0.00066,67919.0,67918.0,0.55723485]
[1718278187885,0.00066,67919.0,67918.0,0.6226478]
[1718278188294,0.00066,67919.0,67918.0,0.6326478]
[1718278188493,0.00066,67919.0,67918.0,0.52139715]
[1718278188724,0.00066,67919.0,67918.0,0.5868101]
[1718278188916,0.00066,67919.0,67918.0,0.56505497]
[1718278189335,0.00066,67919.0,67918.0,0.55505497]
[1718278189547,0.00066,67919.0,67918.0,0.55505764]
[1718278189965,0.00066,67919.0,67918.0,0.55723793]
[1718278190529,0.00066,67919.0,67918.0,0.56723793]
[1718278190752,0.00066,67919.0,67918.0,0.55723793]
[1718278190921,0.00066,67919.0,67918.0,0.51139715]
[1718278191871,0.00066,67919.0,67918.0,0.55505568]
[1718278192927,0.00066,67919.0,67918.0,0.57688662]
[1718278193141,0.00066,67919.0,67918.0,0.51139715]
[1718278193377,0.00066,67919.0,67918.0,0.56723804]
[1718278193697,0.00066,67919.0,67918.0,0.67638927]
[1718278194118,0.00066,67919.0,67918.0,0.56723804]
[1718278194242,0.00066,67919.0,67918.0,0.86645797]
[1718278194657,0.00066,67919.0,67918.0,0.9756092]
[1718278195271,0.00066,67919.0,67918.0,0.86645797]
[1718278195498,0.00813241,67927.0,67926.0,0.16995115]
[1718278195719,0.00813241,67927.0,67926.0,0.24075115]
[1718278196519,0.00813241,67927.0,67926.0,0.40155115]
[1718278197987,0.00813241,67927.0,67926.0,0.40855115]
[1718278200490,0.00813241,67927.0,67926.0,0.50305115]
[1718278200651,0.00813241,67927.0,67926.0,0.49305115]
[1718278200867,0.00813241,67927.0,67926.0,0.50305115]
[1718278201069,0.00813241,67927.0,67926.0,0.49305115]
[1718278201332,0.00813241,67927.0,67926.0,0.79669008]
[1718278201519,0.00813241,67927.0,67926.0,1.23472044]
[1718278201740,0.00813241,67927.0,67926.0,0.90019304]
[1718278201948,0.00813241,67927.0,67926.0,0.89319304]
[1718278202319,0.00813241,67927.0,67926.0,0.53397311]
[1718278202523,0.00813241,67927.0,67926.0,0.26677311]
[1718278202751,0.00813241,67927.0,67926.0,0.20995115]
[1718278202926,0.13263241,67927.0,67926.0,0.11]
[1718278203303,0.13263241,67927.0,67926.0,0.20095115]
[1718278203931,0.13263241,67927.0,67926.0,0.22095115]
[1718278204515,0.13263241,67927.0,67926.0,0.20095115]
[1718278204717,0.13263241,67927.0,67926.0,0.23495115]
[1718278205115,0.13263241,67927.0,67926.0,0.22095115]
[1718278205501,0.00813241,67927.0,67926.0,0.22095115]
[1718278205700,0.00813241,67927.0,67926.0,0.43205115]
[1718278205904,0.00813241,67927.0,67926.0,0.42105115]
[1718278206227,0.00813241,67927.0,67926.0,0.42405115]
[1718278206433,0.00813241,67927.0,67926.0,0.42805115]
[1718278206638,0.00813241,67927.0,67926.0,0.34025115]
[1718278206845,0.00813241,67927.0,67926.0,0.32825115]
[1718278207218,0.00813241,67927.0,67926.0,0.33425115]
[1718278207659,0.00813241,67927.0,67926.0,0.32825115]
[1718278208033,0.00813241,67927.0,67926.0,0.32425115]
[1718278208203,0.00813241,67927.0,67926.0,0.33725115]
[1718278208615,0.00813241,67927.0,67926.0,0.32425115]
[1718278208822,0.00813241,67927.0,67926.0,0.33725115]
[1718278209267,0.00813241,67927.0,67926.0,0.34325115]
[1718278210069,0.00813241,67927.0,67926.0,0.44135115]
[1718278210524,0.00813241,67927.0,67926.0,0.50676266]
[1718278211118,0.00813241,67927.0,67926.0,0.44135115]
[1718278211357,0.00813241,67927.0,67926.0,0.42835115]
[1718278211564,0.00813241,67927.0,67926.0,0.48595375]
[1718278211733,0.00813241,67927.0,67926.0,0.44235115]
[1718278211937,0.00813241,67927.0,67926.0,0.42835115]
[1718278212361,0.00813241,67927.0,67926.0,0.44235115]
[1718278212569,0.00813241,67927.0,67926.0,0.47994835]
[1718278212928,0.00813241,67927.0,67926.0,0.44835115]
[1718278213129,0.00813241,67927.0,67926.0,0.89479008]
[1718278213333,0.00813241,67927.0,67926.0,0.96018563]
[1718278213528,0.00813241,67927.0,67926.0,0.92857371]
[1718278213959,0.00813241,67927.0,67926.0,1.02472903]
[1718278214276,0.00813241,67927.0,67926.0,1.01572903]
[1718278214476,0.00813241,67927.0,67926.0,0.88034729]
[1718278214681,0.00813241,67927.0,67926.0,0.78135471]
[1718278215091,0.00813241,67927.0,67926.0,0.92857371]
[1718278215290,0.00813241,67927.0,67926.0,0.93413974]
[1718278215500,0.00813241,67927.0,67926.0,1.13755614]
[1718278215705,0.00813241,67927.0,67926.0,1.06355614]
[1718278215905,0.00813241,67927.0,67926.0,0.95232972]
[1718278216113,0.00813241,67927.0,67926.0,0.83333714]
[1718278216291,0.00813241,67927.0,67926.0,0.84333714]
[1718278216526,0.00813241,67927.0,67926.0,0.98926462]
[1718278217524,0.00086,67938.0,67937.0,0.599395]
[1718278217770,0.00086,67938.0,67937.0,0.78727108]
[1718278219645,0.00086,67938.0,67937.0,0.93446608]
[1718278220282,0.00086,67938.0,67937.0,0.94846608]
[1718278220482,0.00086,67938.0,67937.0,0.60397108]
[1718278220896,0.00086,67938.0,67937.0,0.61497108]
[1718278221293,0.00086,67938.0,67937.0,0.54417108]
[1718278221571,0.00086,67938.0,67937.0,0.24495115]
[1718278222014,0.00086,67938.0,67937.0,0.31575115]
[1718278224472,0.00017769,67942.0,67941.0,0.17995115]
[1718278224753,0.00017769,67942.0,67941.0,1.02405708]
[1718278224942,0.00017769,67942.0,67941.0,1.22701705]
[1718278225187,0.00017769,67942.0,67941.0,1.17569792]
[1718278225407,0.00017769,67942.0,67941.0,0.75607108]
[1718278225615,0.00017769,67942.0,67941.0,0.94277108]
[1718278226064,0.00017769,67942.0,67941.0,0.95677108]
[1718278226481,0.00017769,67942.0,67941.0,0.90677108]
[1718278226707,0.00017769,67942.0,67941.0,0.93277108]
[1718278226925,0.00017769,67942.0,67941.0,0.94677108]
[1718278227151,0.00017769,67942.0,67941.0,0.96077108]
[1718278227597,0.00017769,67942.0,67941.0,0.24795115]
[1718278227841,0.00017769,67942.0,67941.0,0.32655653]
[1718278228942,0.00017769,67942.0,67941.0,0.31286885]
[1718278229148,0.00017769,67942.0,67941.0,0.30486885]
[1718278229360,0.08667769,67942.0,67941.0,0.30455971]
[1718278229571,0.08667769,67942.0,67941.0,0.112]
[1718278229791,0.13017769,67942.0,67941.0,0.1]
[1718278230058,0.13017769,67942.0,67941.0,0.12]
[1718278230271,0.13017769,67942.0,67941.0,0.106]
[1718278230534,0.13017769,67942.0,67941.0,0.20595115]
[1718278230737,0.13017769,67942.0,67941.0,0.21895115]
[1718278230954,0.13017769,67942.0,67941.0,0.11893206]
[1718278231161,0.13017769,67942.0,67941.0,0.21888321]
[1718278231391,0.13103769,67942.0,67941.0,0.21888321]
[1718278231598,0.13103769,67942.0,67941.0,0.11893206]
[1718278232969,0.13103769,67942.0,67941.0,0.21888321]
[1718278233179,0.08753769,67942.0,67941.0,0.23888321]
[1718278233608,0.08753769,67942.0,67941.0,0.21888321]
[1718278236077,0.08753769,67942.0,67941.0,0.11893206]
[1718278236709,0.08753769,67942.0,67941.0,0.06893206]
[1718278236967,0.08753769,67942.0,67941.0,0.019]
[1718278236968,0.27555762,67942.0,67941.0,0.019]
[1718278238110,0.27555762,67942.0,67941.0,0.006]
[1718278238316,0.37555762,67942.0,67941.0,0.006]
[1718278238971,0.24535762,67942.0,67941.0,0.001]
[1718278239578,0.37345762,67942.0,67941.0,0.001]
[1718278239778,0.37345762,67942.0,67936.0,0.04993206]
[1718278240054,0.0873,67939.0,67936.0,0.04993206]
[1718278240194,0.14431993,67938.0,67936.0,0.04993206]
[1718278241005,0.0873,67937.0,67936.0,0.04993206]
[1718278241186,0.27531993,67937.0,67936.0,0.04993206]
[1718278242294,0.27531993,67937.0,67936.0,0.05093206]
[1718278242459,0.27531993,67937.0,67936.0,0.05193206]
[1718278242668,0.27531993,67937.0,67936.0,0.05093206]
[1718278243101,0.27531993,67937.0,67936.0,0.05193206]
[1718278243762,0.31295569,67937.0,67936.0,0.002]
[1718278243985,0.93595569,67937.0,67936.0,0.002]
[1718278244573,1.30730678,67937.0,67936.0,0.002]
[1718278244774,1.56742951,67937.0,67936.0,0.002]
[1718278244922,1.74595353,67937.0,67936.0,0.002]
[1718278245128,0.5,67929.0,67926.0,0.000946]
[1718278245374,0.1319,67927.0,67926.0,0.000946]
[1718278245580,0.37621993,67927.0,67926.0,0.000946]
[1718278246512,0.46384192,67927.0,67926.0,0.000946]
[1718278246764,0.46384192,67927.0,67926.0,0.001946]
[1718278246765,0.48684192,67927.0,67926.0,0.001946]
[1718278247430,0.50084192,67927.0,67926.0,0.001946]
[1718278248334,0.50084192,67927.0,67926.0,0.000946]
[1718278248335,0.41321993,67927.0,67926.0,0.000946]
[1718278248626,0.42721993,67927.0,67926.0,0.001946]
[1718278248862,0.41321993,67927.0,67926.0,0.001946]
[1718278249056,0.39921993,67927.0,67926.0,0.000946]
[1718278249377,0.41321993,67927.0,67926.0,0.001946]
[1718278249587,0.50159993,67927.0,67926.0,0.001946]
[1718278249792,0.1271,67919.0,67918.0,0.000946]
[1718278250012,0.37141993,67919.0,67918.0,0.000946]
[1718278251521,0.57111993,67919.0,67918.0,0.000946]
[1718278251729,0.59874992,67919.0,67918.0,0.000946]
[1718278251991,0.61274992,67919.0,67918.0,0.001946]
[1718278252946,0.62674992,67919.0,67918.0,0.000946]
[1718278253135,0.61274992,67919.0,67918.0,0.000946]
[1718278253547,0.61274992,67919.0,67918.0,0.001946]
[1718278253826,0.62674992,67919.0,67918.0,0.001946]
[1718278255021,0.62674992,67919.0,67893.0,0.04993206]
[1718278255022,0.1304,67904.0,67893.0,0.04993206]
[1718278255228,0.30735993,67903.0,67891.0,0.43295979]
[1718278255431,0.30735993,67903.0,67884.0,0.21065115]
[1718278255432,0.30735993,67903.0,67892.0,0.04993206]
[1718278256537,0.24431993,67903.0,67893.0,0.17211111]
[1718278256732,0.25531993,67903.0,67893.0,0.17211111]
[1718278257312,0.25531993,67903.0,67894.0,0.09995115]
[1718278257522,0.25531993,67903.0,67895.0,0.09995115]
[1718278257722,0.25531993,67903.0,67894.0,0.09995115]
[1718278258770,0.24431993,67903.0,67893.0,0.17211111]
[1718278258972,0.24431993,67903.0,67894.0,0.09995115]
[1718278259176,0.25731993,67903.0,67893.0,0.07215996]
[1718278259376,0.25731993,67903.0,67893.0,0.17211111]
[1718278259548,0.24431993,67903.0,67893.0,0.17211111]
[1718278259904,0.25831993,67903.0,67894.0,0.09995115]
[1718278260150,0.27231993,67903.0,67893.0,0.17211111]
[1718278260323,0.25831993,67903.0,67897.0,0.09995115]
[1718278260530,0.014,67903.0,67902.0,0.34178321]
[1718278260783,0.014,67903.0,67902.0,0.41178321]
[1718278261103,0.028,67903.0,67902.0,0.41178321]
[1718278262019,0.014,67903.0,67902.0,0.41178321]
[1718278262446,0.0835,67921.0,67910.0,0.09995115]
[1718278262662,0.14431993,67920.0,67911.0,0.09995115]
[1718278262892,0.14431993,67920.0,67916.0,0.09995115]
[1718278263094,0.14431993,67920.0,67917.0,0.09995115]
[1718278263309,0.14431993,67920.0,67916.0,0.09995115]
[1718278263524,0.14431993,67920.0,67918.0,0.09995115]
[1718278264366,0.1,67919.0,67918.0,0.09995115]
[1718278264578,0.24431993,67919.0,67918.0,0.09995115]
[1718278265201,0.013,67920.0,67919.0,0.11995115]
[1718278265404,0.01982915,67926.0,67919.0,0.11995115]
[1718278265405,0.01982915,67926.0,67922.0,0.09995115]
[1718278265622,0.20322693,67929.0,67928.0,0.09995115]
[1718278265839,0.0147,67936.0,67931.0,0.09995115]
[1718278266057,0.14431993,67935.0,67931.0,0.09995115]
[1718278266800,0.14431993,67935.0,67932.0,0.09995115]
[1718278267005,0.14431993,67935.0,67931.0,0.09995115]
[1718278267262,0.014,67936.0,67934.0,0.07215996]
[1718278267450,0.025,67943.0,67941.0,0.09995115]
[1718278268569,0.01503769,67942.0,67939.0,0.05]
[1718278269183,0.01503769,67942.0,67938.0,0.04993206]
[1718278269763,0.14431993,67941.0,67938.0,0.04993206]
[1718278271396,0.14331993,67941.0,67936.0,0.04993206]
[1718278271607,0.15731993,67941.0,67938.0,0.04993206]
[1718278271832,0.17131993,67941.0,67938.0,0.04993206]
[1718278272696,0.17131993,67941.0,67938.0,0.14988321]
[1718278272900,0.028,67941.0,67938.0,0.04993206]
[1718278273112,0.014,67941.0,67938.0,0.14988321]
[1718278273308,0.012,67941.0,67938.0,0.14988321]
[1718278273628,0.014,67941.0,67938.0,0.14988321]
[1718278274059,0.028,67941.0,67940.0,0.09995115]
[1718278274256,0.014,67941.0,67940.0,0.09995115]
[1718278274666,0.028,67941.0,67940.0,0.09995115]
[1718278274873,0.028,67941.0,67938.0,0.04993206]
[1718278275088,0.014,67941.0,67938.0,0.04993206]
[1718278275282,0.014,67941.0,67937.0,0.05]
[1718278275488,0.014,67941.0,67938.0,0.04993206]
[1718278276195,0.00103769,67942.0,67938.0,0.04993206]
[1718278276415,0.14535762,67942.0,67938.0,0.04993206]
[1718278276655,0.028,67941.0,67938.0,0.04993206]
[1718278276869,0.014,67941.0,67938.0,0.04993206]
[1718278277105,0.028,67941.0,67938.0,0.04993206]
[1718278277325,0.014,67941.0,67938.0,0.04993206]
[1718278277761,0.014,67941.0,67938.0,0.14988321]
[1718278278390,0.014,67941.0,67940.0,0.09995115]
[1718278278602,0.028,67941.0,67940.0,0.09995115]
[1718278279018,0.028,67941.0,67940.0,0.11995115]
[1718278279443,0.028,67941.0,67940.0,0.09995115]
[1718278279658,0.028,67941.0,67938.0,0.14988321]
[1718278280074,0.014,67941.0,67940.0,0.09995115]
[1718278280280,0.014,67941.0,67939.0,0.09995115]
[1718278280508,0.028,67941.0,67940.0,0.09995115]
[1718278280713,0.014,67941.0,67939.0,0.09995115]
[1718278280925,0.14535762,67942.0,67941.0,0.09995115]
[1718278281957,0.14535762,67942.0,67938.0,0.14988321]
[1718278282172,0.014,67941.0,67938.0,0.14988321]
[1718278283669,0.15935762,67942.0,67938.0,0.14988321]
[1718278283962,0.17235762,67942.0,67938.0,0.14988321]
[1718278284268,0.17235762,67942.0,67939.0,0.09995115]
[1718278284485,0.15935762,67942.0,67939.0,0.09995115]
[1718278284691,0.15935762,67942.0,67938.0,0.04993206]
[1718278284692,0.14535762,67942.0,67938.0,0.04993206]
[1718278284897,0.009,67941.0,67938.0,0.04993206]
[1718278285055,0.15935762,67942.0,67937.0,0.05]
[1718278285261,0.15935762,67942.0,67938.0,0.04993206]
[1718278285458,0.14535762,67942.0,67938.0,0.04993206]
[1718278285688,0.15735762,67942.0,67938.0,0.04993206]
[1718278286004,0.17135762,67942.0,67938.0,0.04993206]
[1718278286785,0.15935762,67942.0,67938.0,0.04993206]
[1718278287410,0.014,67941.0,67938.0,0.04993206]
[1718278287812,0.14535762,67942.0,67938.0,0.04993206]
[1718278287982,0.14535762,67942.0,67938.0,0.14988321]
[1718278288188,0.17335762,67942.0,67938.0,0.14988321]
[1718278288679,0.17335762,67942.0,67938.0,0.04993206]
[1718278289012,0.014,67941.0,67938.0,0.04993206]
[1718278290398,0.15935762,67942.0,67938.0,0.04993206]
[1718278290805,0.17335762,67942.0,67938.0,0.04993206]
[1718278291045,0.15935762,67942.0,67938.0,0.04993206]
[1718278291256,0.00103769,67942.0,67941.0,0.24204317]
[1718278291453,0.00103769,67942.0,67941.0,0.67404317]
[1718278292378,0.01503769,67942.0,67941.0,0.67404317]
[1718278292579,0.02903769,67942.0,67941.0,0.67404317]
[1718278293424,0.02903769,67942.0,67941.0,0.82122917]
[1718278293639,0.01503769,67942.0,67941.0,0.82122917]
[1718278294051,0.00203769,67942.0,67941.0,1.1204491]
[1718278294278,0.00103769,67942.0,67941.0,1.1204491]
[1718278294476,0.00203769,67942.0,67941.0,1.1234491]
[1718278295108,0.00103769,67942.0,67941.0,1.1204491]
[1718278295304,0.00103769,67942.0,67941.0,0.9732631]
[1718278295510,0.00203769,67942.0,67941.0,0.9742631]
[1718278296202,0.00203769,67942.0,67941.0,1.1214491]
[1718278296631,0.00303769,67942.0,67941.0,1.1254491]
[1718278297373,0.00303769,67942.0,67941.0,0.8233631]
[1718278297575,0.00303769,67942.0,67941.0,0.9705491]
[1718278297772,0.00303769,67942.0,67941.0,0.8233631]
[1718278298204,0.00303769,67942.0,67941.0,0.9705491]
[1718278299084,0.00303769,67942.0,67941.0,0.8233631]
[1718278299261,0.00303769,67942.0,67941.0,0.9705491]
[1718278300723,0.00303769,67942.0,67941.0,1.1254491]
[1718278301395,0.00303769,67942.0,67941.0,1.2254491]
[1718278301722,0.00303769,67942.0,67941.0,1.2754491]
[1718278302892,0.00303769,67942.0,67941.0,1.6198221]
[1718278303099,0.00303769,67942.0,67941.0,1.3254491]
[1718278304220,0.00303769,67942.0,67941.0,1.4254491]
[1718278304428,0.00303769,67942.0,67941.0,1.3254491]
[1718278305143,0.00303769,67942.0,67941.0,1.4254491]
[1718278306763,0.00303769,67942.0,67941.0,1.3254491]
[1718278307591,0.00303769,67942.0,67941.0,1.4254491]
[1718278310431,0.00303769,67942.0,67941.0,1.4484491]
[1718278310653,0.025,67943.0,67942.0,1.21183521]
[1718278310854,0.025,67943.0,67942.0,1.18478714]
[1718278311170,0.025,67943.0,67942.0,1.23047544]
[1718278311676,0.025,67943.0,67942.0,1.18478714]
[1718278312093,0.026,67943.0,67942.0,1.18778714]
[1718278312302,0.027,67943.0,67942.0,1.18778714]
[1718278312941,0.026,67943.0,67942.0,1.23347976]
[1718278313178,0.026,67943.0,67942.0,1.23047976]
[1718278313179,0.025,67943.0,67942.0,1.23047976]
[1718278313293,0.025,67943.0,67942.0,1.28934176]
[1718278313507,0.026,67943.0,67942.0,1.18778714]
[1718278313716,0.026,67943.0,67942.0,0.94060314]
[1718278314151,0.026,67943.0,67942.0,1.08778714]
[1718278314367,0.026,67943.0,67942.0,0.94060314]
[1718278314676,0.027,67943.0,67942.0,1.08878714]
[1718278314885,0.027,67943.0,67942.0,1.08778714]
[1718278314886,0.026,67943.0,67942.0,1.08778714]
[1718278315262,0.027,67943.0,67942.0,0.94160314]
[1718278315498,0.025,67943.0,67942.0,0.93760314]
[1718278315706,0.025,67943.0,67942.0,1.08878714]
[1718278315912,0.027,67943.0,67942.0,1.06678714]
[1718278316088,0.027,67943.0,67942.0,0.91960314]
[1718278316289,0.026,67943.0,67942.0,0.91860314]
[1718278316605,0.026,67943.0,67942.0,1.06578714]
[1718278316942,0.025,67943.0,67942.0,1.06178714]
[1718278317156,0.026,67943.0,67942.0,0.91860314]
[1718278317274,0.026,67943.0,67942.0,0.22388321]
[1718278317475,0.026,67943.0,67942.0,0.40058321]
[1718278317779,0.027,67943.0,67942.0,0.40158321]
[1718278318650,0.025,67943.0,67942.0,0.39658321]
[1718278319102,0.026,67943.0,67942.0,0.39758321]
[1718278319482,0.025,67943.0,67942.0,0.39658321]
[1718278319826,0.026,67943.0,67942.0,0.40058321]
[1718278320452,0.025,67943.0,67942.0,0.39658321]
[1718278321049,0.026,67943.0,67942.0,0.39758321]
[1718278321252,0.29999999,67945.0,67942.0,0.39758321]
[1718278321253,0.29999999,67945.0,67943.0,0.04993206]
[1718278321471,0.00856,67946.0,67945.0,0.62158321]
[1718278321674,0.00856,67946.0,67945.0,0.85590314]
[1718278322201,0.00856,67946.0,67945.0,0.86590314]
[1718278322984,0.00956,67946.0,67945.0,0.86990314]
[1718278323409,0.00856,67946.0,67945.0,0.86590314]
[1718278323610,0.00856,67946.0,67945.0,0.81590314]
[1718278323837,0.00856,67946.0,67945.0,0.86990314]
[1718278323838,0.00956,67946.0,67945.0,0.86990314]
[1718278324511,0.01056,67946.0,67945.0,0.88290314]
[1718278324913,0.00916,67946.0,67945.0,0.70990314]
[1718278325117,0.00916,67946.0,67945.0,0.72390314]
[1718278325493,0.00916,67946.0,67945.0,0.70990314]
[1718278325890,0.00916,67946.0,67945.0,0.72390314]
[1718278326274,0.00916,67946.0,67945.0,0.7419922]
[1718278327203,0.00816,67946.0,67945.0,0.7379922]
[1718278327409,0.00816,67946.0,67945.0,0.6541922]
[1718278327637,0.00916,67946.0,67945.0,0.6581922]
[1718278327825,0.00916,67946.0,67945.0,0.23788321]
[1718278328243,0.00816,67946.0,67945.0,0.23388321]
[1718278328688,0.00916,67946.0,67945.0,0.23788321]
[1718278330261,0.00916,67946.0,67945.0,0.21788321]
[1718278330503,0.00916,67946.0,67945.0,0.23788321]
[1718278334292,0.05596,67946.0,67945.0,0.06793206]
[1718278334434,0.14276,67946.0,67945.0,0.06793206]
[1718278334637,0.14276,67946.0,67945.0,0.018]
[1718278334836,0.14276,67946.0,67945.0,0.06793206]
[1718278335196,0.14276,67946.0,67945.0,0.06393206]
[1718278335197,0.28607993,67946.0,67945.0,0.06393206]
[1718278335408,0.28607993,67946.0,67945.0,0.014]
[1718278335614,0.28707993,67946.0,67945.0,0.06793206]
[1718278335820,0.28707993,67946.0,67945.0,0.05393206]
[1718278336202,0.28807993,67946.0,67945.0,0.06693206]
[1718278336798,0.28807993,67946.0,67945.0,0.26308702]
[1718278336799,0.28707993,67946.0,67945.0,0.26308702]
[1718278337252,0.30107993,67946.0,67945.0,0.26308702]
[1718278337792,0.28707993,67946.0,67945.0,0.26308702]
[1718278338026,0.28607993,67946.0,67945.0,0.25008702]
[1718278338415,0.31407993,67946.0,67945.0,0.25108702]
[1718278338963,0.32807993,67946.0,67945.0,0.25208702]
[1718278339370,0.30007993,67946.0,67945.0,0.25008702]
[1718278339723,0.31407993,67946.0,67945.0,0.25108702]
[1718278340054,0.30007993,67946.0,67945.0,0.25108702]
[1718278340470,0.31407993,67946.0,67945.0,0.25108702]
[1718278340946,0.30007993,67946.0,67945.0,0.25108702]
[1718278341403,0.31407993,67946.0,67945.0,0.25108702]
[1718278343795,0.30007993,67946.0,67945.0,0.25108702]
[1718278344270,0.31407993,67946.0,67945.0,0.25108702]
[1718278344613,0.30007993,67946.0,67945.0,0.25008702]
[1718278345025,0.31407993,67946.0,67945.0,0.25108702]
[1718278351663,0.31407993,67946.0,67945.0,0.35103817]
[1718278351890,0.03616,67946.0,67945.0,0.35103817]
[1718278353001,0.03616,67946.0,67945.0,0.25108702]
[1718278355335,0.32147993,67946.0,67945.0,0.20115496]
[1718278355553,0.39217993,67946.0,67945.0,0.20115496]
[1718278357114,0.32147993,67946.0,67945.0,0.20115496]
[1718278361969,0.32147993,67946.0,67945.0,0.20210096]
[1718278364367,0.38252417,67946.0,67945.0,0.20210096]
[1718278364960,0.32147993,67946.0,67945.0,0.20210096]
[1718278365718,0.3825238,67946.0,67945.0,0.20210096]
[1718278367016,0.40225121,67946.0,67945.0,0.20210096]
[1718278371256,0.402256,67946.0,67945.0,0.20210096]
[1718278371660,0.502256,67946.0,67945.0,0.20210096]
[1718278372835,0.48252859,67946.0,67945.0,0.20210096]
[1718278373612,0.52652329,67946.0,67945.0,0.20210096]
[1718278374178,0.48252859,67946.0,67945.0,0.20210096]
[1718278376248,1.06640447,67946.0,67945.0,0.20210096]
[1718278376419,1.4177043,67946.0,67945.0,0.19374267]
[1718278376700,1.79460689,67946.0,67945.0,0.13545739]
[1718278376910,1.88363518,67946.0,67945.0,0.13545739]
[1718278377361,1.86965938,67946.0,67945.0,0.13545739]
[1718278377557,1.85565938,67946.0,67945.0,0.13445739]
[1718278377816,1.87026644,67946.0,67945.0,0.13445739]
[1718278378019,1.88426644,67946.0,67945.0,0.13545739]
[1718278379396,1.99440956,67946.0,67945.0,0.13545739]
[1718278380224,1.57897113,67946.0,67945.0,0.13545739]
[1718278380462,1.88426047,67946.0,67945.0,0.13545739]
[1718278381002,1.88449264,67946.0,67945.0,0.13545739]
[1718278381855,1.74349264,67946.0,67945.0,0.13545739]
[1718278382102,1.96359264,67946.0,67945.0,0.13545739]
[1718278382310,1.96359725,67946.0,67945.0,0.13545739]
[1718278382772,1.87372973,67946.0,67945.0,0.13545739]
[1718278382961,1.96346704,67946.0,67945.0,0.13545739]
[1718278383184,1.65817309,67946.0,67945.0,0.13545739]
[1718278383384,1.9634783,67946.0,67945.0,0.13545739]
[1718278383746,1.48663173,67946.0,67945.0,0.10822477]
[1718278384237,1.65826009,67946.0,67945.0,0.10822477]
[1718278384400,1.96357118,67946.0,67945.0,0.10822477]
[1718278384598,0.1227,67943.0,67942.0,0.000946]
[1718278384799,1.37566452,67943.0,67942.0,0.000946]
[1718278384998,0.1273,67933.0,67924.0,0.07215996]
[1718278385229,0.0707,67925.0,67924.0,0.04993206]
[1718278385407,0.21501993,67925.0,67924.0,0.04993206]
[1718278385609,0.21501993,67925.0,67923.0,0.1074]
[1718278385827,0.14431993,67924.0,67923.0,0.1074]
[1718278387384,0.16982192,67924.0,67923.0,0.1074]
[1718278387808,0.16982192,67924.0,67918.0,0.14743206]
[1718278388008,0.0707,67921.0,67918.0,0.14743206]
[1718278388213,0.16982192,67924.0,67920.0,0.04993206]
[1718278388214,0.24052192,67924.0,67920.0,0.04993206]
[1718278388409,0.24052192,67924.0,67921.0,0.04993206]
[1718278389246,0.24052192,67924.0,67918.0,0.0975]
[1718278389247,0.02405219,67923.0,67920.0,0.04993206]
[1718278389445,0.16837212,67923.0,67921.0,0.04993206]
[1718278389678,0.001,67921.0,67918.0,0.0975]
[1718278389888,0.0717,67921.0,67918.0,0.0975]
[1718278390119,0.0707,67921.0,67918.0,0.0975]
[1718278390306,0.02390721,67920.0,67918.0,0.0975]
[1718278390505,0.14431993,67919.0,67916.0,0.04993206]
[1718278391667,0.14431993,67919.0,67917.0,0.084]
[1718278391876,0.14431993,67919.0,67918.0,0.1034]
[1718278393542,0.14731993,67919.0,67918.0,0.1034]
[1718278393939,0.14431993,67919.0,67918.0,0.1034]
[1718278394496,0.15031993,67919.0,67918.0,0.104346]
[1718278396568,0.17242192,67919.0,67918.0,0.104346]
[1718278397384,0.17242192,67919.0,67918.0,0.000946]
[1718278399538,0.35412192,67919.0,67918.0,0.000946]
[1718278399946,0.41519694,67919.0,67918.0,0.000946]
[1718278400341,0.40919694,67919.0,67918.0,0.000946]